[Event "Late-Titled-Tuesday-Blitz-September-26-2023"]
[Site "Chess.com"]
[Date "2023.09.26"]
[Round "1"]
[White "Korchmar_Vasiliy"]
[Black "picturesquecheck"]
[Result "1-0"]
[WhiteElo "2670"]
[BlackElo "2373"]
[TimeControl "180+1"]
[EndTime "14:07:15 PDT"]
[Termination "Korchmar_Vasiliy won on time"]

1. e4 {[%clk 0:03:00.9]} 1... c5 {[%clk 0:02:59.9]} 2. d4 {[%clk 0:03:00.7]}
2... cxd4 {[%clk 0:02:59.4]} 3. Qxd4 {[%clk 0:03:01.6]} 3... Nc6 {[%clk
0:02:58.7]} 4. Qd3 {[%clk 0:03:02.1]} 4... Nf6 {[%clk 0:02:58.6]} 5. Nc3 {[%clk
0:03:02.5]} 5... d6 {[%clk 0:02:58.6]} 6. Nf3 {[%clk 0:03:02.3]} 6... Bg4 {[%clk
0:02:57.2]} 7. Bg5 {[%clk 0:02:48.8]} 7... Nd7 {[%clk 0:02:49.6]} 8. O-O-O
{[%clk 0:02:43.9]} 8... h6 {[%clk 0:02:46.8]} 9. Bh4 {[%clk 0:02:31.9]} 9... g5
{[%clk 0:02:44.5]} 10. Bg3 {[%clk 0:02:32.3]} 10... Bg7 {[%clk 0:02:44.7]} 11.
h4 {[%clk 0:02:30.1]} 11... Qa5 {[%clk 0:02:15.2]} 12. Kb1 {[%clk 0:02:07.9]}
12... a6 {[%clk 0:01:45.3]} 13. hxg5 {[%clk 0:01:57.7]} 13... Nb4 {[%clk
0:01:37.1]} 14. Qc4 {[%clk 0:01:36.8]} 14... Nb6 {[%clk 0:01:07.5]} 15. Qb3
{[%clk 0:01:34.2]} 15... Be6 {[%clk 0:01:06.7]} 16. Qa3 {[%clk 0:01:33.4]} 16...
Qxa3 {[%clk 0:00:37.1]} 17. bxa3 {[%clk 0:01:34.3]} 17... Bxc3 {[%clk
0:00:34.6]} 18. axb4 {[%clk 0:01:34.9]} 18... Bxb4 {[%clk 0:00:32.9]} 19. Rxh6
{[%clk 0:01:31.9]} 19... Rg8 {[%clk 0:00:32.2]} 20. Nd4 {[%clk 0:01:23.5]} 20...
Bg4 {[%clk 0:00:21.8]} 21. f3 {[%clk 0:01:21.3]} 21... Bd7 {[%clk 0:00:21.5]}
22. e5 {[%clk 0:01:14.3]} 22... Na4 {[%clk 0:00:21.3]} 23. Rd3 {[%clk
0:00:48.7]} 23... d5 {[%clk 0:00:20]} 24. e6 {[%clk 0:00:42.6]} 24... fxe6
{[%clk 0:00:19]} 25. Nxe6 {[%clk 0:00:43.5]} 25... Bxe6 {[%clk 0:00:18]} 26.
Rxe6 {[%clk 0:00:44.4]} 26... Kf7 {[%clk 0:00:14.9]} 27. Re5 {[%clk 0:00:40.1]}
27... e6 {[%clk 0:00:12.6]} 28. Rb3 {[%clk 0:00:34.4]} 28... a5 {[%clk
0:00:10.6]} 29. Bd3 {[%clk 0:00:34]} 29... Nc5 {[%clk 0:00:07.5]} 30. g6+ {[%clk
0:00:24.4]} 30... Ke7 {[%clk 0:00:07.1]} 31. Rh5 {[%clk 0:00:13.4]} 31... Nxb3
{[%clk 0:00:04.8]} 32. axb3 {[%clk 0:00:14.3]} 32... Kd8 {[%clk 0:00:01.2]} 33.
Rh7 {[%clk 0:00:13.8]} 33... Be7 {[%clk 0:00:01.8]} 34. Bb5 {[%clk 0:00:09.3]}
34... Rc8 {[%clk 0:00:01.1]} 35. Be5 {[%clk 0:00:09.4]} 1-0

[Event "Late-Titled-Tuesday-Blitz-September-26-2023"]
[Site "Chess.com"]
[Date "2023.09.26"]
[Round "1"]
[White "dretch"]
[Black "Schattman"]
[Result "1-0"]
[WhiteElo "2846"]
[BlackElo "2450"]
[TimeControl "180+1"]
[EndTime "14:07:16 PDT"]
[Termination "dretch won by checkmate"]

1. d4 {[%clk 0:03:00.9]} 1... Nf6 {[%clk 0:02:59.4]} 2. c4 {[%clk 0:03:01.2]}
2... g6 {[%clk 0:02:59.8]} 3. Nc3 {[%clk 0:03:01.6]} 3... d5 {[%clk 0:03:00]} 4.
e3 {[%clk 0:03:00.9]} 4... Bg7 {[%clk 0:02:58.6]} 5. Qb3 {[%clk 0:03:01.2]} 5...
e6 {[%clk 0:02:56.3]} 6. Qa3 {[%clk 0:03:01.3]} 6... Bf8 {[%clk 0:02:50]} 7.
Qa4+ {[%clk 0:02:58.9]} 7... c6 {[%clk 0:02:47.8]} 8. Nf3 {[%clk 0:02:54.9]}
8... Nbd7 {[%clk 0:02:43]} 9. Be2 {[%clk 0:02:50.3]} 9... Nb6 {[%clk 0:02:35.4]}
10. Qb3 {[%clk 0:02:50.1]} 10... Nxc4 {[%clk 0:02:35.9]} 11. Bxc4 {[%clk
0:02:49.6]} 11... dxc4 {[%clk 0:02:36.8]} 12. Qxc4 {[%clk 0:02:50]} 12... Be7
{[%clk 0:02:36.2]} 13. e4 {[%clk 0:02:46.9]} 13... O-O {[%clk 0:02:34.8]} 14.
Bh6 {[%clk 0:02:46.3]} 14... Re8 {[%clk 0:02:33.4]} 15. O-O {[%clk 0:02:45.8]}
15... b5 {[%clk 0:02:26.5]} 16. Qe2 {[%clk 0:02:25.3]} 16... a5 {[%clk
0:02:18.8]} 17. Rfd1 {[%clk 0:02:20.6]} 17... b4 {[%clk 0:02:08.6]} 18. Na4
{[%clk 0:02:20]} 18... Ba6 {[%clk 0:02:03]} 19. Qc2 {[%clk 0:02:19.6]} 19... Rc8
{[%clk 0:02:01.3]} 20. Nc5 {[%clk 0:02:17]} 20... Qb6 {[%clk 0:01:52]} 21. Bg5
{[%clk 0:02:14]} 21... Rcd8 {[%clk 0:01:37.7]} 22. Ne5 {[%clk 0:02:12.2]} 22...
Bc8 {[%clk 0:01:26.3]} 23. Rac1 {[%clk 0:02:10.4]} 23... Nh5 {[%clk 0:01:14.5]}
24. Bxe7 {[%clk 0:02:07.2]} 24... Rxe7 {[%clk 0:01:14.7]} 25. Na4 {[%clk
0:02:07.4]} 25... Qb5 {[%clk 0:01:08.1]} 26. Qc5 {[%clk 0:01:06.1]} 26... Ree8
{[%clk 0:00:46.9]} 27. Qxc6 {[%clk 0:00:51.1]} 27... Qxc6 {[%clk 0:00:40.2]} 28.
Nxc6 {[%clk 0:00:50.5]} 28... Nf4 {[%clk 0:00:40.5]} 29. Rc2 {[%clk 0:00:25.9]}
29... Rd7 {[%clk 0:00:39.7]} 30. g3 {[%clk 0:00:18.7]} 30... Nh5 {[%clk
0:00:35]} 31. Nb6 {[%clk 0:00:15.9]} 31... Rc7 {[%clk 0:00:33.5]} 32. d5 {[%clk
0:00:15.5]} 32... exd5 {[%clk 0:00:32.8]} 33. Nxd5 {[%clk 0:00:15.1]} 33... Rb7
{[%clk 0:00:28.5]} 34. Nce7+ {[%clk 0:00:15]} 34... Rexe7 {[%clk 0:00:25.3]} 35.
Nxe7+ {[%clk 0:00:15.9]} 35... Rxe7 {[%clk 0:00:25.7]} 36. Rxc8+ {[%clk
0:00:15.7]} 36... Kg7 {[%clk 0:00:26.3]} 37. f3 {[%clk 0:00:16]} 37... Nf6
{[%clk 0:00:26]} 38. Rdd8 {[%clk 0:00:15.5]} 38... Nh5 {[%clk 0:00:25.4]} 39.
Kf2 {[%clk 0:00:14.4]} 39... g5 {[%clk 0:00:24.4]} 40. Rg8+ {[%clk 0:00:13.5]}
40... Kh6 {[%clk 0:00:24.6]} 41. Rc6+ {[%clk 0:00:13.7]} 41... f6 {[%clk
0:00:25]} 42. h4 {[%clk 0:00:13.7]} 42... Ng7 {[%clk 0:00:19.4]} 43. Rxf6+
{[%clk 0:00:12.9]} 43... Kh5 {[%clk 0:00:19.2]} 44. g4+ {[%clk 0:00:12.9]} 44...
Kxh4 {[%clk 0:00:19.2]} 45. Rh6+ {[%clk 0:00:13.1]} 45... Nh5 {[%clk 0:00:18.6]}
46. Rxh5# {[%clk 0:00:13.6]} 1-0

[Event "Late-Titled-Tuesday-Blitz-September-26-2023"]
[Site "Chess.com"]
[Date "2023.09.26"]
[Round "1"]
[White "Alphafischer2019"]
[Black "Mbneu"]
[Result "1-0"]
[WhiteElo "2591"]
[BlackElo "2251"]
[TimeControl "180+1"]
[EndTime "14:07:18 PDT"]
[Termination "Alphafischer2019 won by checkmate"]

1. Nf3 {[%clk 0:02:59.8]} 1... c5 {[%clk 0:02:57.1]} 2. g3 {[%clk 0:02:59.6]}
2... d5 {[%clk 0:02:54.5]} 3. Bg2 {[%clk 0:02:59.7]} 3... e6 {[%clk 0:02:55.2]}
4. O-O {[%clk 0:02:59.4]} 4... Nc6 {[%clk 0:02:55.8]} 5. d3 {[%clk 0:02:58.7]}
5... Bd6 {[%clk 0:02:53.9]} 6. e4 {[%clk 0:02:58]} 6... Nge7 {[%clk 0:02:53.1]}
7. Qe2 {[%clk 0:02:57.1]} 7... O-O {[%clk 0:02:52.3]} 8. h4 {[%clk 0:02:55.3]}
8... h6 {[%clk 0:02:51.8]} 9. e5 {[%clk 0:02:44.6]} 9... Bc7 {[%clk 0:02:49.5]}
10. h5 {[%clk 0:02:45]} 10... Nf5 {[%clk 0:02:47.7]} 11. Bf4 {[%clk 0:02:42.9]}
11... Ncd4 {[%clk 0:02:45.8]} 12. Nxd4 {[%clk 0:02:38]} 12... Nxd4 {[%clk
0:02:44.3]} 13. Qd2 {[%clk 0:02:38.5]} 13... b6 {[%clk 0:02:38.4]} 14. c3 {[%clk
0:02:37.2]} 14... Nc6 {[%clk 0:02:37]} 15. Re1 {[%clk 0:02:37.5]} 15... f6
{[%clk 0:02:09.8]} 16. exf6 {[%clk 0:02:12.8]} 16... Bxf4 {[%clk 0:02:10.7]} 17.
Qxf4 {[%clk 0:02:13.1]} 17... Qxf6 {[%clk 0:02:09.8]} 18. Qxf6 {[%clk
0:02:04.3]} 18... Rxf6 {[%clk 0:02:00.1]} 19. Na3 {[%clk 0:02:04.6]} 19... Ba6
{[%clk 0:01:53.4]} 20. Rad1 {[%clk 0:02:02]} 20... Raf8 {[%clk 0:01:50.5]} 21.
Rd2 {[%clk 0:01:52]} 21... Ne7 {[%clk 0:01:42.3]} 22. Rde2 {[%clk 0:01:41.6]}
22... Bc8 {[%clk 0:01:37.5]} 23. Nb5 {[%clk 0:01:37.4]} 23... a6 {[%clk
0:01:22.5]} 24. Nc7 {[%clk 0:01:25.5]} 24... Kf7 {[%clk 0:01:18.5]} 25. Bh3
{[%clk 0:01:20.1]} 25... Nf5 {[%clk 0:01:18]} 26. Bxf5 {[%clk 0:01:19.3]} 26...
Rxf5 {[%clk 0:01:09.2]} 27. Nxe6 {[%clk 0:01:19.2]} 27... Bxe6 {[%clk
0:01:04.5]} 28. Rxe6 {[%clk 0:01:20.1]} 28... Rb8 {[%clk 0:00:51.7]} 29. Re7+
{[%clk 0:01:16.9]} 29... Kg8 {[%clk 0:00:51.6]} 30. R1e5 {[%clk 0:01:12.3]}
30... Rxe5 {[%clk 0:00:39.7]} 31. Rxe5 {[%clk 0:01:13.2]} 31... d4 {[%clk
0:00:35.6]} 32. cxd4 {[%clk 0:01:12.4]} 32... cxd4 {[%clk 0:00:35.5]} 33. Rd5
{[%clk 0:01:11.7]} 33... Rc8 {[%clk 0:00:35.6]} 34. Rxd4 {[%clk 0:01:01.6]}
34... Rc2 {[%clk 0:00:36]} 35. Rb4 {[%clk 0:01:02.1]} 35... b5 {[%clk
0:00:35.7]} 36. a4 {[%clk 0:01:02.6]} 36... bxa4 {[%clk 0:00:33.7]} 37. Rxa4
{[%clk 0:01:03.5]} 37... Rxb2 {[%clk 0:00:33.2]} 38. Rxa6 {[%clk 0:01:03.5]}
38... Rb5 {[%clk 0:00:32.1]} 39. g4 {[%clk 0:01:02.1]} 39... Rd5 {[%clk
0:00:29.8]} 40. Ra3 {[%clk 0:01:01.5]} 40... Kf7 {[%clk 0:00:30.1]} 41. Kg2
{[%clk 0:01:01.3]} 41... Kf6 {[%clk 0:00:30.7]} 42. Kg3 {[%clk 0:01:01]} 42...
Rd4 {[%clk 0:00:29.8]} 43. f3 {[%clk 0:00:58.9]} 43... Ke5 {[%clk 0:00:27.5]}
44. f4+ {[%clk 0:00:56.5]} 44... Kf6 {[%clk 0:00:27.5]} 45. Kf3 {[%clk
0:00:56.6]} 45... Rd8 {[%clk 0:00:26.9]} 46. Ra6+ {[%clk 0:00:55.5]} 46... Kf7
{[%clk 0:00:26.4]} 47. Ke4 {[%clk 0:00:55.6]} 47... Re8+ {[%clk 0:00:26.1]} 48.
Kf5 {[%clk 0:00:56.3]} 48... Re3 {[%clk 0:00:25.2]} 49. Ra7+ {[%clk 0:00:56.6]}
49... Kg8 {[%clk 0:00:25]} 50. Rd7 {[%clk 0:00:56]} 50... Kh7 {[%clk 0:00:23.9]}
51. d4 {[%clk 0:00:55]} 51... Re8 {[%clk 0:00:20.6]} 52. d5 {[%clk 0:00:51.9]}
52... Rf8+ {[%clk 0:00:20.6]} 53. Ke4 {[%clk 0:00:52.5]} 53... Re8+ {[%clk
0:00:20.9]} 54. Kf3 {[%clk 0:00:52.8]} 54... Kg8 {[%clk 0:00:20.7]} 55. d6
{[%clk 0:00:52.4]} 55... Kf8 {[%clk 0:00:21]} 56. g5 {[%clk 0:00:52.3]} 56...
Re6 {[%clk 0:00:20.8]} 57. g6 {[%clk 0:00:49.9]} 57... Rf6 {[%clk 0:00:18.1]}
58. Rd8# {[%clk 0:00:44.5]} 1-0

[Event "Late-Titled-Tuesday-Blitz-September-26-2023"]
[Site "Chess.com"]
[Date "2023.09.26"]
[Round "1"]
[White "German_Bazeev"]
[Black "NovikovaGalina"]
[Result "0-1"]
[WhiteElo "2754"]
[BlackElo "2435"]
[TimeControl "180+1"]
[EndTime "14:07:20 PDT"]
[Termination "NovikovaGalina won on time"]

1. c4 {[%clk 0:02:58.9]} 1... e6 {[%clk 0:02:59.4]} 2. Nf3 {[%clk 0:02:51.8]}
2... f5 {[%clk 0:02:59.6]} 3. d4 {[%clk 0:02:52.2]} 3... Nf6 {[%clk 0:03:00.5]}
4. Bg5 {[%clk 0:02:46.9]} 4... Be7 {[%clk 0:02:53]} 5. Nc3 {[%clk 0:02:44.6]}
5... O-O {[%clk 0:02:53.4]} 6. e3 {[%clk 0:02:44.9]} 6... d6 {[%clk 0:02:51.8]}
7. Qc2 {[%clk 0:02:43.5]} 7... Nc6 {[%clk 0:02:40.3]} 8. Be2 {[%clk 0:02:38.3]}
8... e5 {[%clk 0:02:31.5]} 9. O-O-O {[%clk 0:02:16.3]} 9... e4 {[%clk
0:02:26.9]} 10. Nd2 {[%clk 0:02:13.9]} 10... a5 {[%clk 0:01:55.1]} 11. a3 {[%clk
0:02:08.6]} 11... Bd7 {[%clk 0:01:41.3]} 12. h3 {[%clk 0:01:34.4]} 12... Rb8
{[%clk 0:01:40.9]} 13. g4 {[%clk 0:01:26.4]} 13... Na7 {[%clk 0:01:34.8]} 14.
gxf5 {[%clk 0:01:21.8]} 14... Bxf5 {[%clk 0:01:31.7]} 15. Bxf6 {[%clk
0:01:21.1]} 15... Bxf6 {[%clk 0:01:32.6]} 16. Ncxe4 {[%clk 0:01:08.7]} 16... Be7
{[%clk 0:01:32.4]} 17. Bg4 {[%clk 0:01:03.3]} 17... Bg6 {[%clk 0:01:30.8]} 18.
h4 {[%clk 0:00:56.7]} 18... Rxf2 {[%clk 0:01:26.4]} 19. h5 {[%clk 0:00:52.2]}
19... Bxe4 {[%clk 0:01:26.2]} 20. Qxe4 {[%clk 0:00:50.7]} 20... Bg5 {[%clk
0:01:10]} 21. Rdf1 {[%clk 0:00:45.4]} 21... Rxf1+ {[%clk 0:01:06.6]} 22. Rxf1
{[%clk 0:00:46.3]} 22... Qe7 {[%clk 0:01:06.6]} 23. Qxe7 {[%clk 0:00:43.8]}
23... Bxe7 {[%clk 0:01:07.5]} 24. Be6+ {[%clk 0:00:44.4]} 24... Kh8 {[%clk
0:01:06.9]} 25. Rf7 {[%clk 0:00:45.3]} 25... Bg5 {[%clk 0:00:54]} 26. Kc2 {[%clk
0:00:40.6]} 26... Bxe3 {[%clk 0:00:52.9]} 27. Nf3 {[%clk 0:00:41.3]} 27... Nc6
{[%clk 0:00:44.7]} 28. Kd3 {[%clk 0:00:41.1]} 28... Bc1 {[%clk 0:00:39.9]} 29.
Rxc7 {[%clk 0:00:39.2]} 29... Bxb2 {[%clk 0:00:39.7]} 30. h6 {[%clk 0:00:31.3]}
30... gxh6 {[%clk 0:00:36.5]} 31. Rf7 {[%clk 0:00:17.7]} 31... Bxa3 {[%clk
0:00:31.9]} 32. Bf5 {[%clk 0:00:17.9]} 32... Bc1 {[%clk 0:00:27.6]} 33. Rxh7+
{[%clk 0:00:17.8]} 33... Kg8 {[%clk 0:00:28.5]} 34. Rd7 {[%clk 0:00:15.1]} 34...
a4 {[%clk 0:00:28.3]} 35. Rxd6 {[%clk 0:00:14.6]} 35... a3 {[%clk 0:00:28.4]}
36. c5 {[%clk 0:00:15.1]} 36... Re8 {[%clk 0:00:19.3]} 37. Rg6+ {[%clk
0:00:06.8]} 37... Kf7 {[%clk 0:00:17.4]} 38. Rg2 {[%clk 0:00:07.4]} 38... a2
{[%clk 0:00:15.5]} 39. Rxa2 {[%clk 0:00:06.6]} 39... Nb4+ {[%clk 0:00:15.9]} 0-1

[Event "Late-Titled-Tuesday-Blitz-September-26-2023"]
[Site "Chess.com"]
[Date "2023.09.26"]
[Round "1"]
[White "biostatistician"]
[Black "dzilleruelo"]
[Result "1-0"]
[WhiteElo "2626"]
[BlackElo "2323"]
[TimeControl "180+1"]
[EndTime "14:07:20 PDT"]
[Termination "biostatistician won by resignation"]

1. d4 {[%clk 0:02:59.5]} 1... Nf6 {[%clk 0:02:58.8]} 2. Nf3 {[%clk 0:03:00.4]}
2... g6 {[%clk 0:02:59.2]} 3. c4 {[%clk 0:02:59.8]} 3... Bg7 {[%clk 0:02:59.7]}
4. Nc3 {[%clk 0:03:00.2]} 4... d5 {[%clk 0:03:00.3]} 5. cxd5 {[%clk 0:03:01.1]}
5... Nxd5 {[%clk 0:03:00.7]} 6. e4 {[%clk 0:03:02]} 6... Nxc3 {[%clk 0:03:01.1]}
7. bxc3 {[%clk 0:03:02.9]} 7... c5 {[%clk 0:03:01.6]} 8. Be3 {[%clk 0:03:03]}
8... Nc6 {[%clk 0:03:00.2]} 9. Rc1 {[%clk 0:03:02.5]} 9... O-O {[%clk
0:02:57.8]} 10. d5 {[%clk 0:03:01.2]} 10... Ne5 {[%clk 0:02:57.6]} 11. Nxe5
{[%clk 0:03:01.5]} 11... Bxe5 {[%clk 0:02:57.1]} 12. Bxc5 {[%clk 0:03:01.8]}
12... Qa5 {[%clk 0:02:53.4]} 13. Bd4 {[%clk 0:02:29.1]} 13... Bxd4 {[%clk
0:02:51.6]} 14. Qxd4 {[%clk 0:02:30]} 14... Qxa2 {[%clk 0:02:51.7]} 15. Bc4
{[%clk 0:02:30.4]} 15... Qa5 {[%clk 0:02:38.4]} 16. O-O {[%clk 0:02:29.9]} 16...
Bd7 {[%clk 0:02:28.1]} 17. Bd3 {[%clk 0:02:16.5]} 17... b5 {[%clk 0:02:20.4]}
18. e5 {[%clk 0:01:58.2]} 18... e6 {[%clk 0:02:14]} 19. d6 {[%clk 0:01:53.3]}
19... Rfc8 {[%clk 0:02:06.2]} 20. c4 {[%clk 0:01:48]} 20... bxc4 {[%clk
0:02:03.3]} 21. Rxc4 {[%clk 0:01:45.4]} 21... Rxc4 {[%clk 0:02:01]} 22. Bxc4
{[%clk 0:01:46.3]} 22... Qb4 {[%clk 0:01:57.3]} 23. Qe4 {[%clk 0:01:33.4]} 23...
Rc8 {[%clk 0:01:42.4]} 24. Bd3 {[%clk 0:01:33.5]} 24... Qxe4 {[%clk 0:01:42]}
25. Bxe4 {[%clk 0:01:34.4]} 25... a5 {[%clk 0:01:42.6]} 26. f4 {[%clk
0:01:24.7]} 26... Rc4 {[%clk 0:01:33.3]} 27. Bd3 {[%clk 0:01:19]} 27... Rd4
{[%clk 0:01:33.1]} 28. Bb1 {[%clk 0:01:15.7]} 28... a4 {[%clk 0:01:32.6]} 29. g3
{[%clk 0:01:15.5]} 29... Bc6 {[%clk 0:01:24.8]} 30. Rc1 {[%clk 0:01:11.9]} 30...
Bb7 {[%clk 0:01:19.5]} 31. Ba2 {[%clk 0:01:02.8]} 31... Rd2 {[%clk 0:01:14.3]}
32. Rc7 {[%clk 0:01:02.2]} 32... Rg2+ {[%clk 0:00:34.3]} 33. Kf1 {[%clk
0:01:01.7]} 33... Rxa2 {[%clk 0:00:34.9]} 34. Rxb7 {[%clk 0:01:00.5]} 34... Rd2
{[%clk 0:00:34.4]} 35. Ra7 {[%clk 0:00:51.6]} 35... Rd4 {[%clk 0:00:33.9]} 36.
Ke2 {[%clk 0:00:49.8]} 36... g5 {[%clk 0:00:33.9]} 37. Ke3 {[%clk 0:00:49.8]}
37... Rd1 {[%clk 0:00:33.8]} 38. Rxa4 {[%clk 0:00:48.5]} 38... gxf4+ {[%clk
0:00:34.2]} 39. gxf4 {[%clk 0:00:49.2]} 39... Kg7 {[%clk 0:00:34.5]} 40. Ra2
{[%clk 0:00:46.8]} 40... Rb1 {[%clk 0:00:26.3]} 41. Rg2+ {[%clk 0:00:36.3]}
41... Kf8 {[%clk 0:00:25.8]} 42. Rc2 {[%clk 0:00:31.8]} 42... Rb8 {[%clk
0:00:22.8]} 43. Rc7 {[%clk 0:00:29.1]} 43... h5 {[%clk 0:00:19.5]} 44. f5 {[%clk
0:00:27]} 44... Rb4 {[%clk 0:00:08.5]} 45. Rc8+ {[%clk 0:00:23.3]} 1-0

[Event "Late-Titled-Tuesday-Blitz-September-26-2023"]
[Site "Chess.com"]
[Date "2023.09.26"]
[Round "1"]
[White "Rital44"]
[Black "ogpin"]
[Result "1-0"]
[WhiteElo "2519"]
[BlackElo "2045"]
[TimeControl "180+1"]
[EndTime "14:07:22 PDT"]
[Termination "Rital44 won by checkmate"]

1. d4 {[%clk 0:02:59.5]} 1... Nf6 {[%clk 0:02:56.8]} 2. Bg5 {[%clk 0:02:59.4]}
2... Ne4 {[%clk 0:02:56.4]} 3. Bf4 {[%clk 0:02:59.3]} 3... c5 {[%clk 0:02:55.7]}
4. d5 {[%clk 0:02:59.6]} 4... g5 {[%clk 0:02:52.2]} 5. Be5 {[%clk 0:02:59.5]}
5... f6 {[%clk 0:02:50.2]} 6. e3 {[%clk 0:02:59.6]} 6... h5 {[%clk 0:02:40.8]}
7. Be2 {[%clk 0:02:59.4]} 7... g4 {[%clk 0:02:36.8]} 8. Bc3 {[%clk 0:02:44.6]}
8... Nxc3 {[%clk 0:02:33.6]} 9. Nxc3 {[%clk 0:02:45.5]} 9... e6 {[%clk
0:02:23.4]} 10. Bd3 {[%clk 0:02:45.4]} 10... Kf7 {[%clk 0:02:18.4]} 11. Nge2
{[%clk 0:02:36.8]} 11... Bg7 {[%clk 0:02:18.1]} 12. h3 {[%clk 0:02:29.8]} 12...
Na6 {[%clk 0:02:17.1]} 13. Nf4 {[%clk 0:02:14]} 13... e5 {[%clk 0:02:14.5]} 14.
Bg6+ {[%clk 0:01:56.5]} 14... Kg8 {[%clk 0:02:04.3]} 15. Nxh5 {[%clk 0:01:57]}
15... d6 {[%clk 0:01:52.5]} 16. hxg4 {[%clk 0:01:50.6]} 16... Rh6 {[%clk
0:01:52.6]} 17. Bf5 {[%clk 0:01:37.5]} 17... Qb6 {[%clk 0:01:47.2]} 18. Rb1
{[%clk 0:01:30.9]} 18... Nc7 {[%clk 0:01:38.6]} 19. Qf3 {[%clk 0:01:24.7]} 19...
Qb4 {[%clk 0:01:31.6]} 20. a3 {[%clk 0:01:04.9]} 20... Qa5 {[%clk 0:01:31]} 21.
Ke2 {[%clk 0:00:46.2]} 21... Nb5 {[%clk 0:01:30.4]} 22. Nxg7 {[%clk 0:00:29.7]}
22... Nxc3+ {[%clk 0:01:29.8]} 23. bxc3 {[%clk 0:00:29.8]} 23... Rxh1 {[%clk
0:01:20.4]} 24. Rxh1 {[%clk 0:00:30.1]} 24... Qxc3 {[%clk 0:01:18.5]} 25. Be4
{[%clk 0:00:20.5]} 25... Bd7 {[%clk 0:01:02.5]} 26. Rh8+ {[%clk 0:00:08.4]}
26... Kxh8 {[%clk 0:00:58.4]} 27. Qh3+ {[%clk 0:00:08.2]} 27... Kxg7 {[%clk
0:00:55.6]} 28. Qh7+ {[%clk 0:00:09.1]} 28... Kf8 {[%clk 0:00:55.8]} 29. Qh8+
{[%clk 0:00:09.5]} 29... Kf7 {[%clk 0:00:53.9]} 30. Qxa8 {[%clk 0:00:02.6]}
30... Qc4+ {[%clk 0:00:46.1]} 31. Bd3 {[%clk 0:00:02.7]} 31... Qxg4+ {[%clk
0:00:46.5]} 32. Ke1 {[%clk 0:00:02.5]} 32... e4 {[%clk 0:00:40.7]} 33. Be2
{[%clk 0:00:02.3]} 33... Qxg2 {[%clk 0:00:33]} 34. Qh8 {[%clk 0:00:02.7]} 34...
Qg1+ {[%clk 0:00:23.7]} 35. Kd2 {[%clk 0:00:03.3]} 35... Bf5 {[%clk 0:00:16.2]}
36. Bh5+ {[%clk 0:00:03]} 36... Bg6 {[%clk 0:00:11.8]} 37. Qh7+ {[%clk
0:00:03.6]} 37... Kf8 {[%clk 0:00:11.9]} 38. Qxg6 {[%clk 0:00:04.3]} 38... Qxf2+
{[%clk 0:00:11.9]} 39. Kc1 {[%clk 0:00:04.6]} 39... Qxe3+ {[%clk 0:00:11.6]} 40.
Kb1 {[%clk 0:00:04.9]} 40... Qd4 {[%clk 0:00:12]} 41. Qf7# {[%clk 0:00:04.6]}
1-0

[Event "Late-Titled-Tuesday-Blitz-September-26-2023"]
[Site "Chess.com"]
[Date "2023.09.26"]
[Round "1"]
[White "Harsha_Bharathakoti"]
[Black "WindWhistler11"]
[Result "1-0"]
[WhiteElo "2901"]
[BlackElo "2464"]
[TimeControl "180+1"]
[EndTime "14:07:23 PDT"]
[Termination "Harsha_Bharathakoti won on time"]

1. Nf3 {[%clk 0:02:57.9]} 1... Nf6 {[%clk 0:02:59.9]} 2. c4 {[%clk 0:02:57.7]}
2... e6 {[%clk 0:02:57.9]} 3. g3 {[%clk 0:02:56.5]} 3... b6 {[%clk 0:02:57.1]}
4. Bg2 {[%clk 0:02:56.7]} 4... Bb7 {[%clk 0:02:57.6]} 5. O-O {[%clk 0:02:57.1]}
5... Be7 {[%clk 0:02:53.6]} 6. d4 {[%clk 0:02:54.2]} 6... d6 {[%clk 0:02:49.7]}
7. Nc3 {[%clk 0:02:41.5]} 7... c5 {[%clk 0:02:44.7]} 8. d5 {[%clk 0:02:40.7]}
8... exd5 {[%clk 0:02:40.9]} 9. Nh4 {[%clk 0:02:31.4]} 9... O-O {[%clk
0:02:27.9]} 10. Nf5 {[%clk 0:02:28.7]} 10... Re8 {[%clk 0:02:17.9]} 11. Nxe7+
{[%clk 0:02:25.5]} 11... Qxe7 {[%clk 0:02:14.1]} 12. cxd5 {[%clk 0:02:26.4]}
12... h6 {[%clk 0:02:07.3]} 13. Re1 {[%clk 0:02:24.1]} 13... Nbd7 {[%clk
0:02:04.4]} 14. e4 {[%clk 0:02:23.9]} 14... Ba6 {[%clk 0:02:02.2]} 15. f4 {[%clk
0:02:03.9]} 15... Qf8 {[%clk 0:01:48.3]} 16. b3 {[%clk 0:01:59.6]} 16... b5
{[%clk 0:01:46]} 17. Bb2 {[%clk 0:01:44.9]} 17... c4 {[%clk 0:01:38.7]} 18. b4
{[%clk 0:01:42.1]} 18... Re7 {[%clk 0:01:24.7]} 19. Qd4 {[%clk 0:01:36.4]} 19...
Rae8 {[%clk 0:01:19.9]} 20. a4 {[%clk 0:01:25.9]} 20... bxa4 {[%clk 0:01:17.3]}
21. Rxa4 {[%clk 0:01:25.1]} 21... Bc8 {[%clk 0:01:07.7]} 22. Rxa7 {[%clk
0:01:24]} 22... Ng4 {[%clk 0:00:53.3]} 23. h3 {[%clk 0:01:05.7]} 23... Ngf6
{[%clk 0:00:43.3]} 24. Kh2 {[%clk 0:01:01.2]} 24... g5 {[%clk 0:00:40]} 25. b5
{[%clk 0:00:46.4]} 25... Qg7 {[%clk 0:00:33.3]} 26. Rd1 {[%clk 0:00:35.9]} 26...
gxf4 {[%clk 0:00:28.3]} 27. gxf4 {[%clk 0:00:35.9]} 27... Kh8 {[%clk 0:00:25.6]}
28. Qf2 {[%clk 0:00:33.1]} 28... Ne5 {[%clk 0:00:20.2]} 29. Rxe7 {[%clk
0:00:34]} 29... Neg4+ {[%clk 0:00:20]} 30. hxg4 {[%clk 0:00:33.8]} 30... Nxg4+
{[%clk 0:00:20.9]} 31. Kg1 {[%clk 0:00:33.7]} 31... Nxf2 {[%clk 0:00:17.2]} 32.
Rxe8+ {[%clk 0:00:34.3]} 32... Kh7 {[%clk 0:00:17.8]} 33. Kxf2 {[%clk 0:00:35]}
33... Bg4 {[%clk 0:00:16.3]} 34. Bf3 {[%clk 0:00:24.9]} 34... Bxf3 {[%clk
0:00:11.8]} 35. Kxf3 {[%clk 0:00:25.8]} 35... Qg6 {[%clk 0:00:11.6]} 36. Rh1
{[%clk 0:00:19.1]} 36... f5 {[%clk 0:00:11]} 37. Re7+ {[%clk 0:00:18.8]} 37...
Kg8 {[%clk 0:00:11.5]} 38. Ne2 {[%clk 0:00:14.1]} 38... Qg4+ {[%clk 0:00:11]}
39. Kf2 {[%clk 0:00:14]} 39... Kf8 {[%clk 0:00:07.5]} 40. Rg7 {[%clk 0:00:14.3]}
1-0